[Event "Chinese League Div-A Rapid 2022"]
[Site "Fuling,Chongqing"]
[Date "2022.09.12"]
[Round "6.9"]
[White "Liu, Manli"]
[Black "Zhang, Lanlin"]
[Result "0-1"]
[ECO "B53"]
[WhiteElo "2195"]
[BlackElo "2135"]
[Annotator "NA RC"]
[PlyCount "100"]
[EventDate "2022.09.07"]
[EventType "team-tourn"]
[EventCountry "CHN"]
[SourceTitle "playchess.com"]
[Source "ChessBase"]
[SourceQuality "1"]
[TimeControl "1500+10"]

1. e4 {[%emt 0:00:03]} c5 {[%emt 0:00:01]} 2. Nf3 {[%emt 0:00:01]} d6 {[%emt 0:00:01]} 3. d4 {[%emt 0:00:02]} cxd4 {[%emt 0:00:02]} 4. Qxd4 {[%emt 0:00:02]} Nf6 {[%emt 0:00:04]} 5. Nc3 {[%emt 0:00:24]} Nc6 {[%emt 0:01:35]} 6. Qe3 {[%emt 0:00:02]} g6 {[%emt 0:01:00]} 7. h3 {[%emt 0:00:07]} Bg7 {[%emt 0:00:04]} 8. Be2 {[%emt 0:00:01]} d5 {[%emt 0:03:23]} 9. Nxd5 {[%emt 0:01:25]} Nxd5 {[%emt 0:00:23]} 10. exd5 {[%emt 0:00:02]} Qxd5 {[%emt 0:00:02]} 11. O-O {[%emt 0:00:28]} O-O {[%emt 0:00:03]} 12. Rd1 {[%emt 0:01:00]} Qa5 {[%emt 0:00:09]} 13. Bd2 {[%emt 0:00:18]} Qc7 {[%emt 0:00:05]} 14. Bc3 {[%emt 0:00:23]} e5 {[%emt 0:01:27]} 15. b4 {[%emt 0:00:15]} Bf5 {[%emt 0:03:41]} 16. b5 {[%emt 0:00:17]} Nd4 {[%emt 0:01:02]} 17. Nxd4 {[%emt 0:02:00]} exd4 {[%emt 0:00:02]} 18. Bxd4 {[%emt 0:00:05]} Rfe8 {[%emt 0:00:09]} 19. Qf3 {[%emt 0:03:11]} Bxd4 {[%emt 0:00:36]} 20. Rxd4 {[%emt 0:00:25]} Qe5 {[%emt 0:00:02]} 21. Qe3 {[%emt 0:01:59]} Qg7 {[%emt 0:00:15]} 22. Qf4 {[%emt 0:01:04]} Rxe2 {[%emt 0:00:12]} 23. Rad1 {[%emt 0:00:08]} Qe5 {[%emt 0:01:15]} 24. Qxe5 {[%emt 0:01:05]} Rxe5 {[%emt 0:00:02]} 25. c4 {[%emt 0:00:01]} Rc8 {[%emt 0:00:09]} 26. Rd8+ {[%emt 0:00:35]} Rxd8 {[%emt 0:01:01]} 27. Rxd8+ {[%emt 0:00:02]} Kg7 {[%emt 0:00:02]} 28. Ra8 {[%emt 0:00:15]} Be6 {[%emt 0:02:21]} 29. Rxa7 {[%emt 0:00:11]} Bxc4 {[%emt 0:00:02]} 30. a4 {[%emt 0:00:08]} b6 {[%emt 0:00:03]} 31. h4 {[%emt 0:01:28]} Bb3 {[%emt 0:00:27]} 32. f3 {[%emt 0:00:04]} Rc5 {[%emt 0:00:31]} 33. Ra6 {[%emt 0:00:23]} Rc4 {[%emt 0:00:01]} 34. Rxb6 {[%emt 0:00:03]} Bxa4 {[%emt 0:00:02]} 35. Rb8 {[%emt 0:00:05]} h5 {[%emt 0:01:26]} 36. b6 {[%emt 0:00:21]} Rb4 {[%emt 0:00:14]} 37. Kf2 {[%emt 0:00:04]} Bc6 {[%emt 0:00:13]} 38. Kg3 {[%emt 0:00:18]} Kf6 {[%emt 0:00:08]} 39. Kf2 {[%emt 0:00:54]} Rxh4 {[%emt 0:03:51]} 40. Rc8 {[%emt 0:00:51]} Bd5 {[%emt 0:00:02]} 41. Rd8 {[%emt 0:04:31]} Ke6 {[%emt 0:00:06]} 42. Re8+ {[%emt 0:03:00]} Kd7 {[%emt 0:00:03]} 43. Re5 {[%emt 0:00:24]} Kd6 {[%emt 0:00:14]} 44. Re8 {[%emt 0:00:39]} Rb4 {[%emt 0:00:05]} 45. Rd8+ {[%emt 0:00:30]} Kc6 {[%emt 0:00:04]} 46. Kg3 {[%emt 0:00:07]} Rxb6 {[%emt 0:00:14]} 47. Kf4 {[%emt 0:00:05]} Rb2 {[%emt 0:00:05]} 48. g4 {[%emt 0:00:16]} hxg4 {[%emt 0:01:15]} 49. fxg4 {[%emt 0:00:11]} Rb4+ {[%emt 0:00:04]} 50. Ke5 {[%emt 0:00:27]} Re4+ {[%emt 0:00:22]} 0-1

[Event "Chinese League Div-A Rapid 2022"]
[Site "Fuling,Chongqing"]
[Date "2022.09.12"]
[Round "6.10"]
[White "Hu, Yu A."]
[Black "Yang, Yijing"]
[Result "1-0"]
[ECO "C18"]
[WhiteElo "2074"]
[BlackElo "2022"]
[Annotator "NA RC"]
[PlyCount "143"]
[EventDate "2022.09.07"]
[EventType "team-tourn"]
[EventCountry "CHN"]
[SourceTitle "playchess.com"]
[Source "ChessBase"]
[SourceQuality "1"]
[TimeControl "1500+10"]

1. e4 {[%emt 0:00:03]} e6 {[%emt 0:00:01]} 2. d4 {[%emt 0:00:01]} d5 {[%emt 0:00:02]} 3. Nc3 {[%emt 0:00:03]} Bb4 {[%emt 0:00:03]} 4. e5 {[%emt 0:00:02]} c5 {[%emt 0:00:03]} 5. a3 {[%emt 0:00:02]} Bxc3+ {[%emt 0:00:02]} 6. bxc3 {[%emt 0:00:02]} Qa5 {[%emt 0:00:03]} 7. Bd2 {[%emt 0:00:10]} Qa4 {[%emt 0:00:02]} 8. h4 {[%emt 0:00:07]} Ne7 {[%emt 0:01:53]} 9. h5 {[%emt 0:00:32]} cxd4 {[%emt 0:03:46]} 10. Rb1 {[%emt 0:00:02]} Bd7 {[%emt 0:04:50]} 11. cxd4 {[%emt 0:09:25]} Qxd4 {[%emt 0:00:22]} 12. Nf3 {[%emt 0:00:07]} Qe4+ $16 {[%emt 0:00:22]} 13. Be2 {[%emt 0:00:01]} Nf5 {[%emt 0:05:05]} 14. O-O {[%emt 0:03:35]} Nc6 {[%emt 0:01:30]} 15. Rxb7 {[%emt 0:02:08]} Nfd4 {[%emt 0:05:01]} 16. Nxd4 {[%emt 0:00:27]} Qxd4 {[%emt 0:00:01]} 17. Re1 {[%emt 0:01:12]} Bc8 {[%emt 0:03:00]} 18. Rb3 {[%emt 0:02:09]} O-O {[%emt 0:00:12]} 19. Qc1 {[%emt 0:03:14]} Qxe5 {[%emt 0:01:02]} 20. Bf4 {[%emt 0:00:40]} Qd4 {[%emt 0:00:21]} 21. Rg3 {[%emt 0:00:30]} Ne7 {[%emt 0:00:27]} 22. Bd6 {[%emt 0:00:29]} Re8 {[%emt 0:00:17]} 23. Bb5 {[%emt 0:00:10]} Nf5 {[%emt 0:00:02]} 24. Rd3 {[%emt 0:00:04]} Qf6 {[%emt 0:00:19]} 25. Be5 {[%emt 0:00:36]} Qe7 {[%emt 0:00:06]} 26. Bxe8 {[%emt 0:00:02]} Qxe8 {[%emt 0:00:01]} 27. Qg5 {[%emt 0:00:30]} h6 {[%emt 0:00:11]} 28. Qg4 {[%emt 0:00:02]} Qf8 {[%emt 0:00:11]} 29. Qb4 {[%emt 0:01:40]} Ba6 {[%emt 0:00:08]} 30. Qxf8+ {[%emt 0:00:47]} Rxf8 {[%emt 0:00:15]} 31. Rb3 {[%emt 0:00:01]} Rc8 {[%emt 0:00:08]} 32. Rb8 {[%emt 0:00:09]} Kh7 {[%emt 0:00:11]} 33. Rxc8 {[%emt 0:00:04]} Bxc8 {[%emt 0:00:01]} 34. Rb1 {[%emt 0:00:15]} f6 {[%emt 0:00:23]} 35. Bb8 {[%emt 0:00:02]} a6 {[%emt 0:00:15]} 36. c3 {[%emt 0:00:35]} e5 {[%emt 0:00:15]} 37. Kf1 {[%emt 0:00:12]} Bd7 {[%emt 0:00:09]} 38. Rb7 {[%emt 0:00:35]} Bb5+ {[%emt 0:00:02]} 39. Ke1 {[%emt 0:00:01]} d4 {[%emt 0:00:12]} 40. cxd4 {[%emt 0:00:27]} Nxd4 {[%emt 0:00:06]} 41. Bd6 {[%emt 0:00:20]} Kg8 {[%emt 0:00:29]} 42. Rc7 {[%emt 0:00:12]} Nf5 {[%emt 0:00:07]} 43. Bc5 {[%emt 0:00:08]} Nd4 {[%emt 0:00:06]} 44. Bxd4 {[%emt 0:00:06]} exd4 {[%emt 0:00:03]} 45. Kd2 {[%emt 0:00:02]} Kf8 {[%emt 0:00:15]} 46. Rc1 {[%emt 0:00:11]} Kf7 {[%emt 0:00:17]} 47. Ra1 {[%emt 0:00:08]} Ke6 {[%emt 0:00:10]} 48. a4 {[%emt 0:00:01]} Bc6 {[%emt 0:00:04]} 49. f3 {[%emt 0:00:05]} Kd5 {[%emt 0:00:12]} 50. Kd3 {[%emt 0:00:02]} Bd7 {[%emt 0:00:08]} 51. g4 {[%emt 0:00:07]} f5 {[%emt 0:00:03]} 52. gxf5 {[%emt 0:00:23]} Bxf5+ {[%emt 0:00:00]} 53. Kd2 {[%emt 0:00:01]} g6 {[%emt 0:00:32]} 54. hxg6 {[%emt 0:00:31]} Bxg6 {[%emt 0:00:01]} 55. Rh1 {[%emt 0:00:07]} h5 {[%emt 0:00:06]} 56. Rg1 {[%emt 0:00:01]} Be8 {[%emt 0:00:06]} 57. a5 {[%emt 0:00:07]} Kc4 {[%emt 0:00:27]} 58. Rg5 {[%emt 0:00:08]} h4 {[%emt 0:00:04]} 59. Rg8 {[%emt 0:00:11]} Bd7 {[%emt 0:00:07]} 60. Rg7 {[%emt 0:00:14]} Bf5 {[%emt 0:00:13]} 61. Rf7 {[%emt 0:00:09]} Be6 {[%emt 0:00:08]} 62. Rf6 {[%emt 0:00:03]} Kd5 {[%emt 0:00:01]} 63. Rh6 {[%emt 0:00:24]} h3 {[%emt 0:00:01]} 64. Rh5+ {[%emt 0:00:01]} Kc4 {[%emt 0:00:16]} 65. f4 {[%emt 0:00:01]} Bg4 {[%emt 0:00:08]} 66. Rh4 {[%emt 0:00:02]} Bf5 {[%emt 0:00:12]} 67. Rh6 {[%emt 0:00:08]} Kb4 {[%emt 0:00:31]} 68. Rxa6 {[%emt 0:00:07]} Kb5 {[%emt 0:00:10]} 69. Rh6 {[%emt 0:00:10]} Bg4 {[%emt 0:00:11]} 70. a6 {[%emt 0:00:05]} h2 {[%emt 0:00:04]} 71. a7 {[%emt 0:00:06]} Bf3 {[%emt 0:00:16]} 72. Rxh2 {[%emt 0:00:01]} 1-0

[Event "Chinese League Div-A Rapid 2022"]
[Site "Fuling,Chongqing"]
[Date "2022.09.12"]
[Round "6.11"]
[White "Xu, Zhihang"]
[Black "Zhao, Yuanhe"]
[Result "1-0"]
[ECO "D94"]
[WhiteElo "2489"]
[BlackElo "2440"]
[Annotator "TA"]
[PlyCount "79"]
[EventDate "2022.09.07"]
[EventType "team-tourn"]
[EventCountry "CHN"]
[SourceTitle "playchess.com"]
[Source "ChessBase"]
[SourceQuality "1"]
[TimeControl "1500+10"]

{[%evp 14,79,37,33,31,50,37,22,33,28,30,0,19,0,0,4,18,11,18,18,18,10,27,25,20,20,48,39,48,48,56,56,97,59,88,91,147,153,240,97,85,24,19,12,114,121,142,141,193,192,306,306,582,598,1327,1259,29983,5748,2150,2341,29985,29986,29989,29987,29987,29988,29988,29989]} 1. d4 {[%emt 0:00:03]} d5 {[%emt 0:00:02]} 2. c4 {[%emt 0:00:03]} c6 {[%emt 0:00:01]} 3. Nf3 {[%emt 0:00:03]} Nf6 {[%emt 0:00:02]} 4. e3 {[%emt 0:00:02]} g6 {[%emt 0:00:13]} 5. Nc3 {[%emt 0:00:07]} Bg7 {[%emt 0:00:01]} 6. Be2 {[%emt 0:00:03]} O-O {[%emt 0:00:03]} 7. O-O {[%emt 0:00:03]} e6 {[%emt 0:00:03]} 8. b3 {[%emt 0:00:11] 8.b4 is a critical line.} b6 {[%emt 0:00:02][%cal Bb7b6,Bb6b5][%mdl 32] D94: Grünfeld: 4 Nf3 Bg7 5 e3.} 9. Ba3 {[%emt 0:00:08]} Re8 $1 {[%emt 0:00:02]} 10. Rc1 {[%emt 0:00:26]} Bb7 {[%emt 0:00:02] The position is equal.} 11. Ne5 {[%emt 0:00:23]} Ne4 {[%emt 0:00:07]} 12. Nxe4 {[%emt 0:00:17]} dxe4 {[%emt 0:00:03]} 13. c5 {[%emt 0:00:02]} b5 $1 {[%emt 0:00:30] Against Nc4} ({But not} 13... Nd7 14. Nc4 $14) 14. f3 {[%emt 0:00:39]} f6 {[%emt 0:00:05]} 15. Ng4 {[%emt 0:00:09]} f5 {[%emt 0:00:10] [#] Threatens to win with ...exf3.} 16. Ne5 $146 {[%emt 0:02:24]} ({Predecessor:} 16. Nf2 exf3 17. Bxf3 e5 18. Bb2 e4 19. Be2 Nd7 20. a4 a6 21. Qd2 Nf6 22. Nh3 {0-1 (37) Grossi,K-Palladino,M (2068) ICCF email 2009}) 16... Nd7 {[%emt 0:00:37]} 17. Bb2 {[%emt 0:03:45]} Nxe5 {[%emt 0:01:02]} 18. dxe5 {[%emt 0:00:02]} exf3 {[%emt 0:00:02]} 19. Bxf3 {[%emt 0:00:13]} Qe7 {[%emt 0:01:50]} 20. Qc2 {[%emt 0:02:09]} Qc7 {[%emt 0:03:10]} 21. Qc3 {[%emt 0:00:26]} a5 {[%emt 0:00:21]} 22. a3 {[%emt 0:00:25] Against b4} a4 {[%emt 0:00:55]} 23. Rfd1 {[%emt 0:00:29]} Bf8 {[%emt 0:01:22]} 24. b4 {[%emt 0:00:59][%cal Od1d6]} Rad8 {[%emt 0:00:50] Prevents Rd6.} (24... Qf7 $142) 25. Rd6 $1 $16 {[%emt 0:00:02]} Qc8 {[%emt 0:00:07] [#]} (25... h6 $16 26. Rcd1 Kh7) 26. h4 {[%emt 0:01:27]} Bxd6 {[%emt 0:01:30]} 27. cxd6 {[%emt 0:00:13]} ({White should try} 27. exd6 $16 {[%csl Gb2][%cal Rc3g7]} e5 28. g3) 27... Qd7 $11 {[%emt 0:02:43]} 28. Qd4 {[%emt 0:00:35][%mdl 1024] White has compensation.} Rc8 {[%emt 0:00:17] [#]} (28... Rf8 $11 {remains equal.}) 29. Rc5 $1 $16 {[%emt 0:00:07] White is much more active. The black rooks are badly placed.} Red8 {[%emt 0:00:07]} 30. Bc1 {[%emt 0:00:13]} h6 {[%emt 0:00:37]} (30... Qf7 $16 {might work better.}) 31. e4 $18 {[%emt 0:00:12]} Kh7 {[%emt 0:00:08]} (31... Qg7 {was necessary.} 32. Qd2 Kh7) 32. h5 {[%emt 0:01:45] Black must now prevent hxg6+.} g5 {[%emt 0:00:13]} (32... Rg8 33. hxg6+ Rxg6) 33. exf5 {[%emt 0:01:38]} exf5 {[%emt 0:00:01]} 34. g4 {[%emt 0:02:01] Strongly threatening gxf5.} f4 {[%emt 0:02:56]} 35. Qe4+ {[%emt 0:00:22]} (35. e6 $142 Qg7 36. Qe4+ Kg8 37. d7 Qh7 38. dxc8=R Bxc8 39. Qxh7+ Kxh7 40. Rxc6 Bxe6 41. Rxe6) 35... Kg8 {[%emt 0:00:36]} 36. e6 {[%emt 0:00:17]} Qg7 {[%emt 0:00:32]} 37. d7 {[%emt 0:00:31] White mates.} Rc7 {[%emt 0:00:03]} 38. Bd2 {[%emt 0:00:16]} Rcxd7 {[%emt 0:01:04]} 39. exd7 {[%emt 0:00:04]} Qxd7 {[%emt 0:00:02]} 40. Bc3 {[%emt 0:00:11] Weighted Error Value: White=0.12 (very precise) /Black=0.62} 1-0

[Event "Chinese League Div-A Rapid 2022"]
[Site "Fuling,Chongqing"]
[Date "2022.09.12"]
[Round "6.12"]
[White "Ma, Qun"]
[Black "Li, Di"]
[Result "1/2-1/2"]
[ECO "C81"]
[WhiteElo "2666"]
[BlackElo "2575"]
[Annotator "TA"]
[PlyCount "72"]
[EventDate "2022.09.07"]
[EventType "team-tourn"]
[EventCountry "CHN"]
[SourceTitle "playchess.com"]
[Source "ChessBase"]
[SourceQuality "1"]
[TimeControl "1500+10"]

{[%evp 28,72,12,8,38,5,3,2,4,2,0,0,0,0,0,0,0,0,0,0,0,0,0,0,0,0,0,0,10,0,0,0,0,0,0,0,0,0,0,0,0,0,0,0,0,0,0]} 1. e4 {[%emt 0:00:03]} e5 {[%emt 0:00:12]} 2. Nf3 {[%emt 0:00:02]} Nc6 {[%emt 0:00:02]} 3. Bb5 {[%emt 0:00:04][%cal Bf1b5,Bb5a4,Ba4b3,Bb3c4,Bc4b3][%mdl 32]} a6 {[%emt 0:00:03]} 4. Ba4 {[%emt 0:00:02]} Nf6 {[%emt 0:00:06]} 5. O-O {[%emt 0:00:05]} Nxe4 {[%emt 0:00:13]} 6. d4 {[%emt 0:00:03]} b5 {[%emt 0:00:02]} 7. Bb3 {[%emt 0:00:03]} d5 {[%emt 0:00:01]} 8. dxe5 {[%emt 0:00:04]} Be6 {[%emt 0:00:04]} 9. Qe2 {[%emt 0:00:39]} Be7 {[%emt 0:00:05]} 10. Rd1 {[%emt 0:00:02]} O-O {[%emt 0:00:08]} 11. c4 {[%emt 0:00:04]} bxc4 {[%emt 0:00:04]} 12. Bxc4 {[%emt 0:00:04]} Bc5 {[%emt 0:00:05]} 13. Be3 {[%emt 0:00:02]} Bxe3 {[%emt 0:00:09]} 14. Qxe3 {[%emt 0:00:02]} Qb8 {[%emt 0:00:19]} 15. Bb3 $1 {[%emt 0:00:01]} Na5 {[%emt 0:00:53] C81: Open Ruy Lopez: Keres Variation (9 Qe2).} 16. Nd4 {[%emt 0:00:04]} c5 {[%emt 0:00:33] The position is equal.} 17. Nxe6 {[%emt 0:00:36]} fxe6 {[%emt 0:00:03]} 18. f3 {[%emt 0:01:42][%cal Bf2f3,Bf3e4,Be4d5][%mdl 32]} c4 {[%emt 0:00:05]} (18... Qxe5 $2 19. fxe4 Qxb2 20. Nd2 $18) (18... Nxb3 $2 19. axb3 Ng5 20. Qxg5 $18) 19. fxe4 {[%emt 0:00:04] [#] Black must now prevent Ba4.} cxb3 {[%emt 0:00:03]} 20. exd5 {[%emt 0:01:10]} bxa2 {[%emt 0:00:51]} ({Don't play} 20... Nc4 21. Qd4 Qa7 22. Qxa7 (22. axb3 Ne3 $14) 22... Rxa7 23. axb3 $14) 21. Rxa2 {[%emt 0:00:34]} Nc4 {[%emt 0:00:24][%csl LRb2,LRe3,LRe5]} 22. Qd4 {[%emt 0:00:02]} Qb3 {[%emt 0:00:20]} 23. Nc3 {[%emt 0:00:02]} Rac8 {[%emt 0:00:59]} 24. Rb1 {[%emt 0:03:00]} Ne3 {[%emt 0:03:04][%cal Oc8c3] Hoping for ...Rxc3!} 25. Qxe3 {[%emt 0:00:04]} Rxc3 $1 {[%emt 0:00:05][%mdl 64] [#] Remove Defender} 26. Qxc3 {[%emt 0:00:04]} Qxa2 $11 {[%emt 0:00:04][%mdl 4096] Endgame KQR-KQR} 27. Rd1 {[%emt 0:00:00] Strongly threatening d6.} exd5 {[%emt 0:00:04]} 28. h3 {[%emt 0:00:45]} Qc4 {[%emt 0:00:09]} 29. Qa5 {[%emt 0:03:33]} d4 {[%emt 0:05:21]} 30. Qb6 {[%emt 0:01:09]} d3 {[%emt 0:02:54] [#]} 31. Qd6 $146 {[%emt 0:00:58]} ({Predecessor:} 31. e6 Re8 32. e7 d2 33. Qe3 Qf7 34. Rxd2 Qxe7 35. Qb3+ Qe6 36. Qb4 Qe1+ 37. Kh2 {½-½ (49) Siva,M (2349)-Savanovic,A (2410) Chess.com INT 2020}) 31... Re8 {[%emt 0:00:30]} 32. b4 {[%emt 0:03:38]} Qe4 {[%emt 0:00:44]} 33. Qxd3 {[%emt 0:07:06]} Qxd3 {[%emt 0:00:07]} 34. Rxd3 {[%emt 0:00:02]} Rxe5 {[%emt 0:00:01]} 35. Rd6 {[%emt 0:00:04]} Rb5 {[%emt 0:00:05]} 36. Rxa6 {[%emt 0:00:03]} Rxb4 {[%emt 0:00:02] A balanced but interesting game.  Weighted Error Value: White=0.01 (flawless) /Black=0.02 (flawless)} 1/2-1/2

[Event "Chinese League Div-A Rapid 2022"]
[Site "Fuling,Chongqing"]
[Date "2022.09.12"]
[Round "6.13"]
[White "Bai, Jinshi"]
[Black "Xu, Xiangyu"]
[Result "1/2-1/2"]
[ECO "D41"]
[WhiteElo "2586"]
[BlackElo "2571"]
[Annotator "TA"]
[PlyCount "52"]
[EventDate "2022.09.07"]
[EventType "team-tourn"]
[EventCountry "CHN"]
[SourceTitle "playchess.com"]
[Source "ChessBase"]
[SourceQuality "1"]
[TimeControl "1500+10"]

{[%evp 11,52,23,38,15,28,-8,29,27,28,34,25,25,32,18,24,32,21,13,15,19,17,20,14,9,12,13,10,13,8,8,6,0,0,0,0,0,0,0,4,0,0,0,6]} 1. d4 {[%emt 0:00:04]} d5 {[%emt 0:00:03]} 2. c4 {[%emt 0:00:14]} e6 {[%emt 0:00:04]} 3. Nf3 {[%emt 0:00:18]} Nf6 {[%emt 0:00:48]} 4. Nc3 {[%emt 0:00:48]} c5 {[%emt 0:00:32]} 5. cxd5 {[%emt 0:00:13]} cxd4 {[%emt 0:00:06]} 6. Qxd4 {[%emt 0:00:06]} exd5 {[%emt 0:00:04]} 7. e4 {[%emt 0:00:40][%cal Re4d5] D41: Queen's Gambit Declined: Semi-Tarrasch with 5 cxd5.} dxe4 {[%emt 0:00:07]} 8. Qxd8+ {[%emt 0:00:06]} Kxd8 {[%emt 0:00:04]} 9. Ng5 {[%emt 0:00:02][%csl LRe4,LRf7] White has an edge.} Be6 {[%emt 0:00:05]} 10. Nxe6+ {[%emt 0:00:36]} fxe6 {[%emt 0:00:03]} 11. Bg5 {[%emt 0:00:05]} Nc6 {[%emt 0:00:18] 11...h6 is the recent fashion.} 12. O-O-O+ {[%emt 0:01:20]} Ke8 {[%emt 0:02:29]} 13. Bb5 {[%emt 0:00:33]} Rc8 {[%emt 0:02:14]} 14. Kb1 {[%emt 0:00:14] The position is equal.} Bb4 {[%emt 0:01:57]} 15. Bxf6 {[%emt 0:00:48]} gxf6 {[%emt 0:00:04]} 16. Nxe4 {[%emt 0:00:02]} f5 {[%emt 0:01:56] [#]} 17. a3 $146 {[%emt 0:00:55] [#] Threatens to win with Ng5.} ({Predecessor:} 17. Ng5 Ke7 18. a3 Ba5 19. f4 h6 20. Nf3 Rhd8 21. Rxd8 Nxd8 22. Rd1 Rc7 23. Ne5 {1-0 (66) Carlsen,M (2847)-Vidit,S (2726) chess24.com INT 2021}) 17... fxe4 {[%emt 0:00:51]} 18. axb4 {[%emt 0:00:06]} Rf8 {[%emt 0:00:04]} 19. Rhe1 {[%emt 0:00:32]} Rxf2 {[%emt 0:00:06]} 20. Rxe4 {[%emt 0:00:04]} Ke7 {[%emt 0:00:05]} 21. Rde1 {[%emt 0:00:37]} (21. Rh4 {with more complications.} h5 22. Rxh5 Nxb4 23. Rh4) 21... e5 {[%emt 0:00:14]} 22. Bxc6 {[%emt 0:01:12]} Rxc6 {[%emt 0:00:04]} 23. Rxe5+ {[%emt 0:00:03]} Kf6 {[%emt 0:00:06]} 24. R5e2 {[%emt 0:00:44]} Rf4 {[%emt 0:00:32]} 25. Re4 {[%emt 0:00:34]} Rf2 {[%emt 0:00:03]} 26. R4e2 {[%emt 0:00:07]} Rf4 {[%emt 0:00:21] An even fight not without its subleties.  Weighted Error Value: White=0.02 (flawless) /Black=0.01 (flawless)} 1/2-1/2

[Event "Chinese League Div-A Rapid 2022"]
[Site "Fuling,Chongqing"]
[Date "2022.09.12"]
[Round "6.14"]
[White "Ren, Xiaoyi"]
[Black "Zhai, Mo"]
[Result "1/2-1/2"]
[ECO "C67"]
[WhiteElo "2250"]
[BlackElo "2374"]
[Annotator "TA"]
[PlyCount "55"]
[EventDate "2022.09.07"]
[EventType "team-tourn"]
[EventCountry "CHN"]
[SourceTitle "playchess.com"]
[Source "ChessBase"]
[SourceQuality "1"]
[TimeControl "1500+10"]

{[%evp 21,55,14,24,14,13,0,11,8,1,-16,-16,-18,-9,-20,-18,-20,-12,-15,0,0,0,0,0,0,0,0,0,0,0,-14,0,0,0,-14,0,0]} 1. e4 {[%emt 0:00:07]} e5 {[%emt 0:00:03]} 2. Nf3 {[%emt 0:00:07]} Nc6 {[%emt 0:00:03]} 3. Bb5 {[%emt 0:00:04]} Nf6 {[%emt 0:00:05][%cal Bg8f6,Bf6e4,Be4d6,Bd6f5,Bf5e7,Be7g6,Bg6e5][%mdl 32]} 4. O-O {[%emt 0:00:15]} Nxe4 {[%emt 0:00:19]} 5. d4 {[%emt 0:00:08]} Nd6 {[%emt 0:00:05]} 6. Bxc6 {[%emt 0:00:03]} dxc6 {[%emt 0:00:02]} 7. dxe5 {[%emt 0:00:02]} Nf5 {[%emt 0:00:05]} 8. Qxd8+ {[%emt 0:00:05]} Kxd8 {[%emt 0:00:05]} 9. Nc3 {[%emt 0:00:09]} Ke8 {[%emt 0:00:32]} 10. Rd1 {[%emt 0:00:12]} Ne7 {[%emt 0:00:20]} 11. h3 {[%emt 0:01:32]} Ng6 {[%emt 0:00:08]} 12. Ne2 {[%emt 0:01:15] C67: Ruy Lopez: Berlin Defence: 4 0-0 Nxe4.} Be7 {[%emt 0:02:13][%cal Bf8e7,Be7f6,Bf6d4][%mdl 32] The position is equal.} 13. a4 {[%emt 0:01:45]} Be6 {[%emt 0:01:40]} 14. Be3 {[%emt 0:00:43] [#]} a6 $146 {[%emt 0:02:35]} ({Predecessor:} 14... Bd5 15. Ned4 Rd8 16. Nf5 Rg8 17. Nd2 a5 18. Re1 b6 19. g4 c5 20. Kh2 h6 {½-½ (39) Hatsek,W (1906)-Topot,I (1748) LSS email 2013}) 15. Nfd4 {[%emt 0:05:47]} Nxe5 {[%emt 0:02:04]} 16. Nxe6 {[%emt 0:00:09]} fxe6 {[%emt 0:00:02][%cal Bf7e6,Be6e5,Be5f4][%mdl 32]} 17. Bd4 {[%emt 0:00:05]} Bf6 {[%emt 0:00:55]} 18. Nf4 {[%emt 0:00:12]} Kf7 {[%emt 0:01:57]} 19. Re1 {[%emt 0:00:21] [#]} Nf3+ {[%emt 0:03:36]} 20. gxf3 {[%emt 0:01:39] Black must now prevent Bxf6.} Bxd4 {[%emt 0:00:02]} 21. Rad1 {[%emt 0:03:50]} e5 {[%emt 0:01:33]} 22. c3 {[%emt 0:02:38]} Bxc3 {[%emt 0:02:05]} 23. bxc3 {[%emt 0:00:07] [#] Threatens to win with Rd7+.} exf4 $11 {[%emt 0:00:02] KRR-KRR} 24. Rd7+ {[%emt 0:00:04]} Kf6 {[%emt 0:00:20]} 25. Rde7 {[%emt 0:00:19] Prevents Rhe8.} Rhf8 {[%emt 0:01:43]} 26. R1e6+ {[%emt 0:00:38]} Kf5 {[%emt 0:00:03][%cal Of8f7]} 27. Re5+ {[%emt 0:00:04]} Kf6 {[%emt 0:00:44]} 28. R5e6+ {[%emt 0:00:05] An interesting draw.  Weighted Error Value: White=0.04 (flawless) /Black=0.04 (flawless)} 1/2-1/2

[Event "Chinese League Div-A Rapid 2022"]
[Site "Fuling,Chongqing"]
[Date "2022.09.12"]
[Round "6.15"]
[White "Chu, Ruotong"]
[Black "Hou, Yifan"]
[Result "0-1"]
[ECO "A37"]
[WhiteElo "2185"]
[BlackElo "2650"]
[Annotator "TA"]
[PlyCount "52"]
[EventDate "2022.09.07"]
[EventType "team-tourn"]
[EventCountry "CHN"]
[SourceTitle "playchess.com"]
[Source "ChessBase"]
[SourceQuality "1"]
[TimeControl "1500+10"]

{[%evp 10,52,14,11,20,18,20,2,7,6,36,34,46,0,39,-3,0,-23,-20,-21,0,-28,22,15,22,29,26,10,129,-15,0,0,-13,-8,-22,-212,-216,-212,-212,-300,-257,-699,-687,-639,-573]} 1. c4 {[%emt 0:00:02]} c5 {[%emt 0:00:53]} 2. Nc3 {[%emt 0:00:02]} Nc6 {[%emt 0:00:01]} 3. g3 {[%emt 0:00:11]} g6 {[%emt 0:00:01]} 4. Bg2 {[%emt 0:00:02]} Bg7 {[%emt 0:00:00]} 5. Nf3 {[%emt 0:02:12]} d6 {[%emt 0:00:01]} 6. a3 {[%emt 0:01:30]} Bf5 {[%emt 0:02:08] A37: Symmetrical English vs ...g6: 4 Bg2 Bg7 5 Nf3.} 7. d3 {[%emt 0:01:27]} Qc8 {[%emt 0:00:27]} 8. Nd5 {[%emt 0:01:54] [#]} Rb8 $146 {[%emt 0:01:44] The position is equal.} ({Predecessor:} 8... Nf6 9. e4 Bg4 10. Ne3 Bh3 11. O-O O-O 12. Bxh3 Qxh3 13. Ng5 Qd7 14. f4 h6 {1-0 (37) Schacher,G (2347)-Albano,M (2288) Cesenatico 2013}) 9. O-O {[%emt 0:04:46]} h5 {[%emt 0:00:38][%cal Bh7h5,Bh5h4][%mdl 32]} 10. Rb1 {[%emt 0:00:22]} Bh3 {[%emt 0:01:48]} 11. Re1 {[%emt 0:02:16]} (11. b4 $14 {is superior.}) 11... Nf6 {[%emt 0:05:29]} 12. e4 {[%emt 0:03:20]} Bg4 {[%emt 0:01:10]} 13. Ne3 {[%emt 0:02:52]} Bxf3 {[%emt 0:00:23]} 14. Bxf3 {[%emt 0:00:01]} h4 {[%emt 0:00:02]} 15. b4 {[%emt 0:02:50]} b6 {[%emt 0:03:23]} ({Black should try} 15... Nd7) 16. bxc5 $11 {[%emt 0:00:39]} dxc5 {[%emt 0:00:02]} 17. Bb2 {[%emt 0:00:50]} hxg3 {[%emt 0:00:58]} 18. hxg3 {[%emt 0:01:00] With the idea e5.} Nh5 {[%emt 0:01:04]} (18... Qh3 $2 19. e5 Nd4 20. exf6 $18) (18... Nd4 $11) 19. Bg4 {[%emt 0:00:45]} ({White should play} 19. e5 $1 $16 {aiming for Qa4.} Kf8 20. Nc2) 19... e6 {[%emt 0:00:36]} 20. Bxg7 {[%emt 0:00:40]} Nxg7 {[%emt 0:00:01]} 21. Kg2 {[%emt 0:00:28]} Qc7 {[%emt 0:00:24]} 22. Nd5 $2 {[%emt 0:00:20] [#] Now White is beyond hope.} exd5 $19 {[%emt 0:00:39]} 23. exd5+ {[%emt 0:00:11]} Ne7 {[%emt 0:00:01]} 24. Qf3 {[%emt 0:00:18]} (24. Qc1 {was called for.}) 24... Qd6 {[%emt 0:00:36]} 25. Be6 $2 {[%emt 0:00:11]} (25. Qd1) 25... fxe6 {[%emt 0:00:10]} 26. Qf6 {[%emt 0:00:01]} Rh7 {[%emt 0:00:50] Weighted Error Value: White=0.62/Black=0.24 (precise)} 0-1